Workbook

Sheet Sheet1 (hidden)
A2: Range( | B2: "D13" | C2: ).MergeArea.ClearContents | G2: =CONCATENATE(A2,B2,C2) -> Range("D13").MergeArea.ClearContents
A3: Range( | B3: "J13" | C3: ).MergeArea.ClearContents | G3: Range("J13").MergeArea.ClearContents
A4: Range( | B4: "D16" | C4: ).MergeArea.ClearContents | G4: Range("D16").MergeArea.ClearContents
A5: Range( | B5: "J16" | C5: ).MergeArea.ClearContents | G5: Range("J16").MergeArea.ClearContents
A6: Range( | C6: ).MergeArea.ClearContents | G6: Range().MergeArea.ClearContents
A7: Range( | B7: "D22" | C7: ).MergeArea.ClearContents | G7: Range("D22").MergeArea.ClearContents
A8: Range( | B8: "I22" | C8: ).MergeArea.ClearContents | G8: Range("I22").MergeArea.ClearContents
A9: Range( | B9: "N22" | C9: ).MergeArea.ClearContents | G9: =CONCATENATE(A9,B9,C9) -> Range("N22").MergeArea.ClearContents
A10: Range( | B10: "S22" | C10: ).MergeArea.ClearContents | G10: =CONCATENATE(A10,B10,C10) -> Range("S22").MergeArea.ClearContents
A11: Range( | B11: "X22" | C11: ).MergeArea.ClearContents | G11: Range("X22").MergeArea.ClearContents
A12: Range( | B12: "AC22" | C12: ).MergeArea.ClearContents | G12: Range("AC22").MergeArea.ClearContents
A13: Range( | B13: "D25" | C13: ).MergeArea.ClearContents | G13: Range("D25").MergeArea.ClearContents
A14: Range( | B14: "I25" | C14: ).MergeArea.ClearContents | G14: Range("I25").MergeArea.ClearContents
A15: Range( | B15: "N25" | C15: ).MergeArea.ClearContents | G15: Range("N25").MergeArea.ClearContents
A16: Range( | B16: "S25" | C16: ).MergeArea.ClearContents | G16: Range("S25").MergeArea.ClearContents
A17: Range( | B17: "X25" | C17: ).MergeArea.ClearContents | G17: Range("X25").MergeArea.ClearContents
A18: Range( | B18: "AC25" | C18: ).MergeArea.ClearContents | G18: =CONCATENATE(A18,B18,C18) -> Range("AC25").MergeArea.ClearContents
B20: Range("D29:D36").MergeArea.ClearContents

Sheet 電気代調整 (hidden)
A5: ① 使用量算出 | C5: 精算年度の電気使用量(単位： kWh) | R5: =TODAY() -> 2024-03-12
C6: 期間合計 | D6: =#REF! ->  | E6: =#REF! ->  | F6: =#REF! ->  | G6: =#REF! ->  | H6: =#REF! ->  | I6: =#REF! ->  | N6: 株式会社○○○〇御中
C7: =SUM(D7:I7,D10:I10) ->  | D7: =#REF! ->  | E7: =#REF! ->  | F7: =#REF! ->  | G7: =#REF! ->  | H7: =#REF! ->  | I7: =#REF! ->  | R7: ○○○○株式会社
M8: 仕入価格増加の現状
D9: =#REF! ->  | E9: =#REF! ->  | F9: =#REF! ->  | G9: =#REF! ->  | H9: =#REF! ->  | I9: =#REF! -> 
D10: =#REF! ->  | E10: =#REF! ->  | F10: =#REF! ->  | G10: =#REF! ->  | H10: =#REF! ->  | I10: =#REF! ->  | M10: 〇 | N10: 電気料金の増加額
M12: １．過去の一定期間と直近の平均単価の比較
A13: ② 単位あたりの調整額等の変動額を算出 | D13: 開始月 | E13: 終了月 | F13: 燃料調整額 (期間平均) | O13: 開始月 | P13: 終了月 | Q13: 期間平均単価 （円(kw/h)）
C14: 基準期間 | D14: =#REF! ->  | E14: =#REF! ->  | F14: =IF(D$14<=E$14,IF(EDATE(D$14,12)<=E$14," 12ヶ月以内の期間を指定して下さい",月数計算!O7)," 終了月は開始月以降を指定して下さい") ->  | N14: 過去の一定期間 | O14: 2021-10-01 | P14: 2022-09-01 | Q14: 1.53
C15: 精算期間 | D15: =#REF! ->  | E15: =#REF! ->  | F15: =IF(D$15<=E$15,IF(EDATE(D$15,12)<=E$15," 12ヶ月以内の期間を指定して下さい",月数計算!O13)," 終了月は開始月以降を指定して下さい") ->  | N15: 直近 | O15: 2022-10-01 | P15: 2023-09-01 | Q15: 13.1
C16: 差異 | F16: =F15-F14 ->  | N16: ①差異 | Q16: 11.57
N17: 単価は日本経済新聞掲載の単価を使用
A18: ③ 変動総額を算出 | C18: =C7*F16 ->  | D18: 円
C19: （①の電力使用量に、②の燃料調整額の基準期間平均と精算期間平均の差を掛け合わせた値） | M19: 2 | N19: 使用量
N20: 上記１の直近期間の電気使用量
A21: ④ 製品群や取引先に変動額を振分ける | N21: ②使用量（kw/h）
N22: 303000
D23: 振分基準値 | E23: 基準比率
C24: =#REF! ->  | D24: =#REF! ->  | E24: =D24/$D$32 ->  | F24: ＝＞ | G24: =$C$18*E24 ->  | H24: 円 | M24: 3 | N24: 過去の一定期間と比較した直近の電気料金の増加額（①×②）
C25: =#REF! ->  | D25: =#REF! ->  | E25: =D25/$D$32 ->  | F25: ＝＞ | G25: =$C$18*E25 ->  | N25: 増加額（円）
C26: =#REF! ->  | D26: =#REF! ->  | F26: ＝＞ | N26: =Q16*N22 -> 3505710
C27: =#REF! ->  | D27: =#REF! ->  | F27: ＝＞
C28: =#REF! ->  | D28: =#REF! ->  | F28: ＝＞ | M28: ４．当社振り分け基準による貴社発注品の電気代増加額
C29: =#REF! ->  | D29: =#REF! ->  | F29: ＝＞ | N29: 当社振り分け基準
C30: =#REF! ->  | D30: =#REF! ->  | F30: ＝＞ | N30: 工場稼働時間（h）
C31: =#REF! ->  | D31: =#REF! ->  | F31: ＝＞
C32: 計 | D32: =#REF! ->  | E32: 1 | F32: ＝＞ | G32: =$C$18*E32 ->  | O32: 工場稼働時間（h） | P32: 基準比率 | R32: 電気代増加額（円）
N33: 貴社 | O33: 64 | P33: =O33/$O$41 ->  | Q33: ＝＞ | R33: =$N$26*P33 -> 
A34: ⑤ 基準期間と精算対象期間の価格変動グラフ | N34: A社 | O34: 40 | Q34: ＝＞
N35: B社 | O35: 16 | Q35: ＝＞
N36: C社 | O36: 11 | Q36: ＝＞
N37: D社 | O37: 8 | Q37: ＝＞
N38: E社 | O38: 8 | Q38: ＝＞
N39: その他 | O39: 13 | Q39: ＝＞
O40: =#REF! ->  | P40: =O40/$D$32 ->  | Q40: ＝＞
N41: 計 | O41: =SUM(O33:O40) ->  | P41: 1 | Q41: ＝＞ | R41: =SUM(R33:R40) -> 
M43: ５．過去の一定期間と直近の価格変動グラフ
C67: 電気総料金 ＝ 基本料金 ＋ 電力量料金 ＋ 再エネ賦課金（再生エネルギー発電促進賦課金）
C69: ・基本料金 ＝ 契約電力と力率によって算出
C71: ・電力量料金 ＝ （量料金（円/kWh) x 電力使用量） ＋ （燃料費調整単価(円/kWh) x 電力使用量）
C73: ・再エネ賦課金 ＝ 再エネ賦課金（円/kWh) x 電力使用量
C75: 従って、変動要素の「燃料費調整単価」と「再エネ賦課金」に使用量を掛け合わせると影響額になる

Sheet 電気料金(東京電力) (hidden)
B1: 電気価格推移 | C1: グラフへ戻る | D1: 出典：燃料費調単価・再エネ賦課金は電力会社HP・新電力ネット、平均販売単価は新電力ネット
A2: 会社地域期間 | B2: 指標 | C2: 会社 | D2: 地域 | E2: 期間 | F2: 燃料費調整単価(円/kWh)特別高圧（税込） | G2: 再エネ賦課金(円/kWh)（税込） | H2: 燃料費調整単価＋再エネ賦課金(円/kWh)（税込） | I2: 平均販売単価・特別高圧(円/kWh)（税抜）
A3: 北海道電力41791 | B3: 電気 | C3: 北海道電力 | E3: 41791 | F3: 0.58 | G3: 0.75 | H3: 1.33
A4: 北海道電力41821 | B4: 電気 | C4: 北海道電力 | E4: 41821 | F4: 0.5 | G4: 0.75 | H4: 1.25
A5: 北海道電力41852 | B5: 電気 | C5: 北海道電力 | E5: 41852 | F5: 0.45 | G5: 0.75 | H5: 1.2
A6: 北海道電力41883 | B6: 電気 | C6: 北海道電力 | E6: 41883 | F6: 0.39 | G6: 0.75 | H6: 1.14
A7: 北海道電力41913 | B7: 電気 | C7: 北海道電力 | E7: 41913 | F7: 0.39 | G7: 0.75 | H7: 1.14
A8: 北海道電力41944 | B8: 電気 | C8: 北海道電力 | E8: 41944 | F8: 0.7 | G8: 0.75 | H8: 1.45
A9: 北海道電力41974 | B9: 電気 | C9: 北海道電力 | E9: 41974 | F9: 0.68 | G9: 0.75 | H9: 1.43
A10: 北海道電力42005 | B10: 電気 | C10: 北海道電力 | E10: 42005 | F10: 0.61 | G10: 0.75 | H10: 1.36
A11: 北海道電力42036 | B11: 電気 | C11: 北海道電力 | E11: 42036 | F11: 0.43 | G11: 0.75 | H11: 1.18
A12: 北海道電力42064 | B12: 電気 | C12: 北海道電力 | E12: 42064 | F12: 0.13 | G12: 0.75 | H12: 0.88
A13: 北海道電力42095 | B13: 電気 | C13: 北海道電力 | E13: 42095 | F13: -0.43 | G13: 0.75 | H13: 0.32
A14: 北海道電力42125 | B14: 電気 | C14: 北海道電力 | E14: 42125 | F14: -1.15 | G14: 1.58 | H14: 0.43
A15: 北海道電力42156 | B15: 電気 | C15: 北海道電力 | E15: 42156 | F15: -1.69 | G15: 1.58 | H15: -0.11
A16: 北海道電力42186 | B16: 電気 | C16: 北海道電力 | E16: 42186 | F16: -1.85 | G16: 1.58 | H16: -0.27
A17: 北海道電力42217 | B17: 電気 | C17: 北海道電力 | E17: 42217 | F17: -1.66 | G17: 1.58 | H17: -0.08
A18: 北海道電力42248 | B18: 電気 | C18: 北海道電力 | E18: 42248 | F18: -1.46 | G18: 1.58 | H18: 0.12
A19: 北海道電力42278 | B19: 電気 | C19: 北海道電力 | E19: 42278 | F19: -1.26 | G19: 1.58 | H19: 0.32
A20: 北海道電力42309 | B20: 電気 | C20: 北海道電力 | E20: 42309 | F20: -1.24 | G20: 1.58 | H20: 0.34
A21: 北海道電力42339 | B21: 電気 | C21: 北海道電力 | E21: 42339 | F21: -1.55 | G21: 1.58 | H21: 0.03
A22: 北海道電力42370 | B22: 電気 | C22: 北海道電力 | E22: 42370 | F22: -1.96 | G22: 1.58 | H22: -0.38
A23: 北海道電力42401 | B23: 電気 | C23: 北海道電力 | E23: 42401 | F23: -2.29 | G23: 1.58 | H23: -0.71
A24: 北海道電力42430 | B24: 電気 | C24: 北海道電力 | E24: 42430 | F24: -2.47 | G24: 1.58 | H24: -0.89
A25: 北海道電力42461 | B25: 電気 | C25: 北海道電力 | E25: 42461 | F25: -2.7 | G25: 1.58 | H25: -1.12
A26: 北海道電力42491 | B26: 電気 | C26: 北海道電力 | E26: 42491 | F26: -3.11 | G26: 2.25 | H26: -0.86
A27: 北海道電力42522 | B27: 電気 | C27: 北海道電力 | E27: 42522 | F27: -3.49 | G27: 2.25 | H27: -1.24
A28: 北海道電力42552 | B28: 電気 | C28: 北海道電力 | E28: 42552 | F28: -3.58 | G28: 2.25 | H28: -1.33
A29: 北海道電力42583 | B29: 電気 | C29: 北海道電力 | E29: 42583 | F29: -3.47 | G29: 2.25 | H29: -1.22
A30: 北海道電力42614 | B30: 電気 | C30: 北海道電力 | E30: 42614 | F30: -3.24 | G30: 2.25 | H30: -0.99
A31: 北海道電力42644 | B31: 電気 | C31: 北海道電力 | E31: 42644 | F31: -3.13 | G31: 2.25 | H31: -0.88
A32: 北海道電力42675 | B32: 電気 | C32: 北海道電力 | E32: 42675 | F32: -3.1 | G32: 2.25 | H32: -0.85
A33: 北海道電力42705 | B33: 電気 | C33: 北海道電力 | E33: 42705 | F33: -3.15 | G33: 2.25 | H33: -0.9
A34: 北海道電力42736 | B34: 電気 | C34: 北海道電力 | E34: 42736 | F34: -3.17 | G34: 2.25 | H34: -0.92
A35: 北海道電力42767 | B35: 電気 | C35: 北海道電力 | E35: 42767 | F35: -3.01 | G35: 2.25 | H35: -0.76
A36: 北海道電力42795 | B36: 電気 | C36: 北海道電力 | E36: 42795 | F36: -2.74 | G36: 2.25 | H36: -0.49
A37: 北海道電力42826 | B37: 電気 | C37: 北海道電力 | E37: 42826 | F37: -2.32 | G37: 2.25 | H37: -0.07
A38: 北海道電力42856 | B38: 電気 | C38: 北海道電力 | E38: 42856 | F38: -2.02 | G38: 2.64 | H38: 0.62
A39: 北海道電力42887 | B39: 電気 | C39: 北海道電力 | E39: 42887 | F39: -1.78 | G39: 2.64 | H39: 0.86
A40: 北海道電力42917 | B40: 電気 | C40: 北海道電力 | E40: 42917 | F40: -1.85 | G40: 2.64 | H40: 0.79
A41: 北海道電力42948 | B41: 電気 | C41: 北海道電力 | E41: 42948 | F41: -1.87 | G41: 2.64 | H41: 0.77
A42: 北海道電力42979 | B42: 電気 | C42: 北海道電力 | E42: 42979 | F42: -1.96 | G42: 2.64 | H42: 0.68
A43: 北海道電力43009 | B43: 電気 | C43: 北海道電力 | E43: 43009 | F43: -2.09 | G43: 2.64 | H43: 0.55
A44: 北海道電力43040 | B44: 電気 | C44: 北海道電力 | E44: 43040 | F44: -2.21 | G44: 2.64 | H44: 0.43
A45: 北海道電力43070 | B45: 電気 | C45: 北海道電力 | E45: 43070 | F45: -2.25 | G45: 2.64 | H45: 0.39
A46: 北海道電力43101 | B46: 電気 | C46: 北海道電力 | E46: 43101 | F46: -2.07 | G46: 2.64 | H46: 0.57
A47: 北海道電力43132 | B47: 電気 | C47: 北海道電力 | E47: 43132 | F47: -1.82 | G47: 2.64 | H47: 0.82
A48: 北海道電力43160 | B48: 電気 | C48: 北海道電力 | E48: 43160 | F48: -1.51 | G48: 2.64 | H48: 1.13
A49: 北海道電力43191 | B49: 電気 | C49: 北海道電力 | E49: 43191 | F49: -1.33 | G49: 2.64 | H49: 1.31
A50: 北海道電力43221 | B50: 電気 | C50: 北海道電力 | E50: 43221 | F50: -1.15 | G50: 2.9 | H50: 1.75
A51: 北海道電力43252 | B51: 電気 | C51: 北海道電力 | E51: 43252 | F51: -1.13 | G51: 2.9 | H51: 1.77
A52: 北海道電力43282 | B52: 電気 | C52: 北海道電力 | E52: 43282 | F52: -1.17 | G52: 2.9 | H52: 1.73
A53: 北海道電力43313 | B53: 電気 | C53: 北海道電力 | E53: 43313 | F53: -1.1 | G53: 2.9 | H53: 1.8
A54: 北海道電力43344 | B54: 電気 | C54: 北海道電力 | E54: 43344 | F54: -0.86 | G54: 2.9 | H54: 2.04
A55: 北海道電力43374 | B55: 電気 | C55: 北海道電力 | E55: 43374 | F55: -0.52 | G55: 2.9 | H55: 2.38
A56: 北海道電力43405 | B56: 電気 | C56: 北海道電力 | E56: 43405 | F56: -0.31 | G56: 2.9 | H56: 2.59
A57: 北海道電力43435 | B57: 電気 | C57: 北海道電力 | E57: 43435 | F57: -0.27 | G57: 2.9 | H57: 2.63
A58: 北海道電力43466 | B58: 電気 | C58: 北海道電力 | E58: 43466 | F58: -0.14 | G58: 2.9 | H58: 2.76
A59: 北海道電力43497 | B59: 電気 | C59: 北海道電力 | E59: 43497 | F59: 0.02 | G59: 2.9 | H59: 2.92
A60: 北海道電力43525 | B60: 電気 | C60: 北海道電力 | E60: 43525 | F60: -0.05 | G60: 2.9 | H60: 2.85
A61: 北海道電力43556 | B61: 電気 | C61: 北海道電力 | E61: 43556 | F61: -0.45 | G61: 2.9 | H61: 2.45
A62: 北海道電力43586 | B62: 電気 | C62: 北海道電力 | E62: 43586 | F62: -0.94 | G62: 2.95 | H62: 2.01
A63: 北海道電力43617 | B63: 電気 | C63: 北海道電力 | E63: 43617 | F63: -1.12 | G63: 2.95 | H63: 1.83
A64: 北海道電力43647 | B64: 電気 | C64: 北海道電力 | E64: 43647 | F64: -0.97 | G64: 2.95 | H64: 1.98
A65: 北海道電力43678 | B65: 電気 | C65: 北海道電力 | E65: 43678 | F65: -0.77 | G65: 2.95 | H65: 2.18
A66: 北海道電力43709 | B66: 電気 | C66: 北海道電力 | E66: 43709 | F66: -0.7 | G66: 2.95 | H66: 2.25
A67: 北海道電力43739 | B67: 電気 | C67: 北海道電力 | E67: 43739 | F67: -0.88 | G67: 2.95 | H67: 2.07
A68: 北海道電力43770 | B68: 電気 | C68: 北海道電力 | E68: 43770 | F68: -1.1 | G68: 2.95 | H68: 1.85
A69: 北海道電力43800 | B69: 電気 | C69: 北海道電力 | E69: 43800 | F69: -1.34 | G69: 2.95 | H69: 1.61
A70: 北海道電力43831 | B70: 電気 | C70: 北海道電力 | E70: 43831 | F70: -1.44 | G70: 2.95 | H70: 1.51
A71: 北海道電力43862 | B71: 電気 | C71: 北海道電力 | E71: 43862 | F71: -1.49 | G71: 2.95 | H71: 1.46
A72: 北海道電力43891 | B72: 電気 | C72: 北海道電力 | E72: 43891 | F72: -1.44 | G72: 2.95 | H72: 1.51
A73: 北海道電力43922 | B73: 電気 | C73: 北海道電力 | E73: 43922 | F73: -1.36 | G73: 2.95 | H73: 1.59
A74: 北海道電力43952 | B74: 電気 | C74: 北海道電力 | E74: 43952 | F74: -1.27 | G74: 2.98 | H74: 1.71
A75: 北海道電力43983 | B75: 電気 | C75: 北海道電力 | E75: 43983 | F75: -1.4 | G75: 2.98 | H75: 1.58
A76: 北海道電力44013 | B76: 電気 | C76: 北海道電力 | E76: 44013 | F76: -2.02 | G76: 2.98 | H76: 0.96
A77: 北海道電力44044 | B77: 電気 | C77: 北海道電力 | E77: 44044 | F77: -2.82 | G77: 2.98 | H77: 0.16
A78: 北海道電力44075 | B78: 電気 | C78: 北海道電力 | E78: 44075 | F78: -3.66 | G78: 2.98 | H78: -0.68
A79: 北海道電力44105 | B79: 電気 | C79: 北海道電力 | E79: 44105 | F79: -4.01 | G79: 2.98 | H79: -1.03
A80: 北海道電力44136 | B80: 電気 | C80: 北海道電力 | E80: 44136 | F80: -3.7 | G80: 2.98 | H80: -0.72
A81: 北海道電力44166 | B81: 電気 | C81: 北海道電力 | E81: 44166 | F81: -3.35 | G81: 2.98 | H81: -0.37
A82: 北海道電力44197 | B82: 電気 | C82: 北海道電力 | E82: 44197 | F82: -3.16 | G82: 2.98 | H82: -0.18
A83: 北海道電力44228 | B83: 電気 | C83: 北海道電力 | E83: 44228 | F83: -3.22 | G83: 2.98 | H83: -0.24
A84: 北海道電力44256 | B84: 電気 | C84: 北海道電力 | E84: 44256 | F84: -3.26 | G84: 2.98 | H84: -0.28
A85: 北海道電力44287 | B85: 電気 | C85: 北海道電力 | E85: 44287 | F85: -3.11 | G85: 2.98 | H85: -0.13
A86: 北海道電力44317 | B86: 電気 | C86: 北海道電力 | E86: 44317 | F86: -2.8 | G86: 3.36 | H86: 0.56
A87: 北海道電力44348 | B87: 電気 | C87: 北海道電力 | E87: 44348 | F87: -2.32 | G87: 3.36 | H87: 1.04
A88: 北海道電力44378 | B88: 電気 | C88: 北海道電力 | E88: 44378 | F88: -1.82 | G88: 3.36 | H88: 1.54
A89: 北海道電力44409 | B89: 電気 | C89: 北海道電力 | E89: 44409 | F89: -1.49 | G89: 3.36 | H89: 1.87
A90: 北海道電力44440 | B90: 電気 | C90: 北海道電力 | E90: 44440 | F90: -1.2 | G90: 3.36 | H90: 2.16
A91: 北海道電力44470 | B91: 電気 | C91: 北海道電力 | E91: 44470 | F91: -0.92 | G91: 3.36 | H91: 2.44
A92: 北海道電力44501 | B92: 電気 | C92: 北海道電力 | E92: 44501 | F92: -0.55 | G92: 3.36 | H92: 2.81
A93: 北海道電力44531 | B93: 電気 | C93: 北海道電力 | E93: 44531 | F93: -0.26 | G93: 3.36 | H93: 3.1
A94: 北海道電力44562 | B94: 電気 | C94: 北海道電力 | E94: 44562 | F94: 0.06 | G94: 3.36 | H94: 3.42
A95: 北海道電力44593 | B95: 電気 | C95: 北海道電力 | E95: 44593 | F95: 0.59 | G95: 3.36 | H95: 3.95
A96: 北海道電力44621 | B96: 電気 | C96: 北海道電力 | E96: 44621 | F96: 1.09 | G96: 3.36 | H96: 4.45
A97: 北海道電力44652 | B97: 電気 | C97: 北海道電力 | E97: 44652 | F97: 1.31 | G97: 3.36 | H97: 4.67
A98: 北海道電力44682 | B98: 電気 | C98: 北海道電力 | E98: 44682 | F98: 1.45 | G98: 3.45 | H98: 4.9
A99: 北海道電力44713 | B99: 電気 | C99: 北海道電力 | E99: 44713 | F99: 1.8 | G99: 3.45 | H99: 5.25
A100: 北海道電力44743 | B100: 電気 | C100: 北海道電力 | E100: 44743 | F100: 3.02 | G100: 3.45 | H100: 6.47
A101: 北海道電力44774 | B101: 電気 | C101: 北海道電力 | E101: 44774 | F101: 4.43 | G101: 3.45 | H101: 7.88
A102: 北海道電力44805 | B102: 電気 | C102: 北海道電力 | E102: 44805 | F102: 6.37 | G102: 3.45 | H102: 9.82
A103: 北海道電力44835 | B103: 電気 | C103: 北海道電力 | E103: 44835 | F103: 7.84 | G103: 3.45 | H103: 11.29
A104: 北海道電力44866 | B104: 電気 | C104: 北海道電力 | E104: 44866 | F104: 8.7 | G104: 3.45 | H104: 12.15
A105: 北海道電力44896 | B105: 電気 | C105: 北海道電力 | E105: 44896 | F105: 9.11 | G105: 3.45 | H105: 12.56
A106: 北海道電力44927 | B106: 電気 | C106: 北海道電力 | E106: 44927 | F106: 9.26 | G106: 3.45 | H106: 12.71
A107: 北海道電力44958 | B107: 電気 | C107: 北海道電力 | E107: 44958 | F107: 9.59 | G107: 3.45 | H107: 13.04
A108: 北海道電力44986 | B108: 電気 | C108: 北海道電力 | E108: 44986 | F108: 9.05 | G108: 3.45 | H108: 12.5
A109: 北海道電力45017 | B109: 電気 | C109: 北海道電力 | E109: 45017 | F109: 8 | G109: 3.45 | H109: 11.45
A110: 北海道電力45047 | B110: 電気 | C110: 北海道電力 | E110: 45047 | F110: 6.94 | G110: 1.4 | H110: 8.34
A111: 北海道電力45078 | B111: 電気 | C111: 北海道電力 | E111: 45078 | F111: 6.26 | G111: 1.4 | H111: 7.66
A112: 北海道電力45108 | B112: 電気 | C112: 北海道電力 | E112: 45108 | F112: 5.67 | G112: 1.4 | H112: 7.07
A113: 北海道電力45139 | B113: 電気 | C113: 北海道電力 | E113: 45139 | F113: 5.06 | G113: 1.4 | H113: 6.46
A114: 北海道電力45170 | B114: 電気 | C114: 北海道電力 | E114: 45170 | F114: 4.36 | G114: 1.4 | H114: 5.76
A115: 東北電力41791 | B115: 電気 | C115: 東北電力 | E115: 41791 | F115: 1.84 | G115: 0.75 | H115: 2.59
A116: 東北電力41821 | B116: 電気 | C116: 東北電力 | E116: 41821 | F116: 1.78 | G116: 0.75 | H116: 2.53
A117: 東北電力41852 | B117: 電気 | C117: 東北電力 | E117: 41852 | F117: 1.7 | G117: 0.75 | H117: 2.45
A118: 東北電力41883 | B118: 電気 | C118: 東北電力 | E118: 41883 | F118: 1.6 | G118: 0.75 | H118: 2.35
A119: 東北電力41913 | B119: 電気 | C119: 東北電力 | E119: 41913 | F119: 1.49 | G119: 0.75 | H119: 2.24
A120: 東北電力41944 | B120: 電気 | C120: 東北電力 | E120: 41944 | F120: 1.43 | G120: 0.75 | H120: 2.18
A121: 東北電力41974 | B121: 電気 | C121: 東北電力 | E121: 41974 | F121: 1.41 | G121: 0.75 | H121: 2.16
A122: 東北電力42005 | B122: 電気 | C122: 東北電力 | E122: 42005 | F122: 1.47 | G122: 0.75 | H122: 2.22
A123: 東北電力42036 | B123: 電気 | C123: 東北電力 | E123: 42036 | F123: 1.62 | G123: 0.75 | H123: 2.37
A124: 東北電力42064 | B124: 電気 | C124: 東北電力 | E124: 42064 | F124: 1.8 | G124: 0.75 | H124: 2.55
A125: 東北電力42095 | B125: 電気 | C125: 東北電力 | E125: 42095 | F125: 1.72 | G125: 0.75 | H125: 2.47
A126: 東北電力42125 | B126: 電気 | C126: 東北電力 | E126: 42125 | F126: 1.29 | G126: 1.58 | H126: 2.87
A127: 東北電力42156 | B127: 電気 | C127: 東北電力 | E127: 42156 | F127: 0.75 | G127: 1.58 | H127: 2.33
A128: 東北電力42186 | B128: 電気 | C128: 東北電力 | E128: 42186 | F128: 0.18 | G128: 1.58 | H128: 1.76
A129: 東北電力42217 | B129: 電気 | C129: 東北電力 | E129: 42217 | F129: -0.22 | G129: 1.58 | H129: 1.36
A130: 東北電力42248 | B130: 電気 | C130: 東北電力 | E130: 42248 | F130: -0.63 | G130: 1.58 | H130: 0.95
A131: 東北電力42278 | B131: 電気 | C131: 東北電力 | E131: 42278 | F131: -0.73 | G131: 1.58 | H131: 0.85
A132: 東北電力42309 | B132: 電気 | C132: 東北電力 | E132: 42309 | F132: -0.65 | G132: 1.58 | H132: 0.93
A133: 東北電力42339 | B133: 電気 | C133: 東北電力 | E133: 42339 | F133: -0.67 | G133: 1.58 | H133: 0.91
A134: 東北電力42370 | B134: 電気 | C134: 東北電力 | E134: 42370 | F134: -0.77 | G134: 1.58 | H134: 0.81
A135: 東北電力42401 | B135: 電気 | C135: 東北電力 | E135: 42401 | F135: -0.93 | G135: 1.58 | H135: 0.65
A136: 東北電力42430 | B136: 電気 | C136: 東北電力 | E136: 42430 | F136: -1.11 | G136: 1.58 | H136: 0.47
A137: 東北電力42461 | B137: 電気 | C137: 東北電力 | E137: 42461 | F137: -1.39 | G137: 1.58 | H137: 0.19
A138: 東北電力42491 | B138: 電気 | C138: 東北電力 | E138: 42491 | F138: -1.68 | G138: 2.25 | H138: 0.57
A139: 東北電力42522 | B139: 電気 | C139: 東北電力 | E139: 42522 | F139: -2.04 | G139: 2.25 | H139: 0.21
A140: 東北電力42552 | B140: 電気 | C140: 東北電力 | E140: 42552 | F140: -2.28 | G140: 2.25 | H140: -0.03
A141: 東北電力42583 | B141: 電気 | C141: 東北電力 | E141: 42583 | F141: -2.55 | G141: 2.25 | H141: -0.3
A142: 東北電力42614 | B142: 電気 | C142: 東北電力 | E142: 42614 | F142: -2.69 | G142: 2.25 | H142: -0.44
A143: 東北電力42644 | B143: 電気 | C143: 東北電力 | E143: 42644 | F143: -2.73 | G143: 2.25 | H143: -0.48
A144: 東北電力42675 | B144: 電気 | C144: 東北電力 | E144: 42675 | F144: -2.69 | G144: 2.25 | H144: -0.44
A145: 東北電力42705 | B145: 電気 | C145: 東北電力 | E145: 42705 | F145: -2.63 | G145: 2.25 | H145: -0.38
A146: 東北電力42736 | B146: 電気 | C146: 東北電力 | E146: 42736 | F146: -2.55 | G146: 2.25 | H146: -0.3
A147: 東北電力42767 | B147: 電気 | C147: 東北電力 | E147: 42767 | F147: -2.32 | G147: 2.25 | H147: -0.07
A148: 東北電力42795 | B148: 電気 | C148: 東北電力 | E148: 42795 | F148: -2.04 | G148: 2.25 | H148: 0.21
A149: 東北電力42826 | B149: 電気 | C149: 東北電力 | E149: 42826 | F149: -1.7 | G149: 2.25 | H149: 0.55
A150: 東北電力42856 | B150: 電気 | C150: 東北電力 | E150: 42856 | F150: -1.41 | G150: 2.64 | H150: 1.23
A151: 東北電力42887 | B151: 電気 | C151: 東北電力 | E151: 42887 | F151: -1.29 | G151: 2.64 | H151: 1.35
A152: 東北電力42917 | B152: 電気 | C152: 東北電力 | E152: 42917 | F152: -1.29 | G152: 2.64 | H152: 1.35
A153: 東北電力42948 | B153: 電気 | C153: 東北電力 | E153: 42948 | F153: -1.23 | G153: 2.64 | H153: 1.41
A154: 東北電力42979 | B154: 電気 | C154: 東北電力 | E154: 42979 | F154: -1.19 | G154: 2.64 | H154: 1.45
A155: 東北電力43009 | B155: 電気 | C155: 東北電力 | E155: 43009 | F155: -1.19 | G155: 2.64 | H155: 1.45
A156: 東北電力43040 | B156: 電気 | C156: 東北電力 | E156: 43040 | F156: -1.27 | G156: 2.64 | H156: 1.37
A157: 東北電力43070 | B157: 電気 | C157: 東北電力 | E157: 43070 | F157: -1.33 | G157: 2.64 | H157: 1.31
A158: 東北電力43101 | B158: 電気 | C158: 東北電力 | E158: 43101 | F158: -1.29 | G158: 2.64 | H158: 1.35
A159: 東北電力43132 | B159: 電気 | C159: 東北電力 | E159: 43132 | F159: -1.21 | G159: 2.64 | H159: 1.43
A160: 東北電力43160 | B160: 電気 | C160: 東北電力 | E160: 43160 | F160: -1.07 | G160: 2.64 | H160: 1.57
A161: 東北電力43191 | B161: 電気 | C161: 東北電力 | E161: 43191 | F161: -0.93 | G161: 2.64 | H161: 1.71
A162: 東北電力43221 | B162: 電気 | C162: 東北電力 | E162: 43221 | F162: -0.77 | G162: 2.9 | H162: 2.13
A163: 東北電力43252 | B163: 電気 | C163: 東北電力 | E163: 43252 | F163: -0.69 | G163: 2.9 | H163: 2.21
A164: 東北電力43282 | B164: 電気 | C164: 東北電力 | E164: 43282 | F164: -0.65 | G164: 2.9 | H164: 2.25
A165: 東北電力43313 | B165: 電気 | C165: 東北電力 | E165: 43313 | F165: -0.55 | G165: 2.9 | H165: 2.35
A166: 東北電力43344 | B166: 電気 | C166: 東北電力 | E166: 43344 | F166: -0.38 | G166: 2.9 | H166: 2.52
A167: 東北電力43374 | B167: 電気 | C167: 東北電力 | E167: 43374 | F167: -0.18 | G167: 2.9 | H167: 2.72
A168: 東北電力43405 | B168: 電気 | C168: 東北電力 | E168: 43405 | F168: 0 | G168: 2.9 | H168: 2.9
A169: 東北電力43435 | B169: 電気 | C169: 東北電力 | E169: 43435 | F169: 0.14 | G169: 2.9 | H169: 3.04
A170: 東北電力43466 | B170: 電気 | C170: 東北電力 | E170: 43466 | F170: 0.34 | G170: 2.9 | H170: 3.24
A171: 東北電力43497 | B171: 電気 | C171: 東北電力 | E171: 43497 | F171: 0.53 | G171: 2.9 | H171: 3.43
A172: 東北電力43525 | B172: 電気 | C172: 東北電力 | E172: 43525 | F172: 0.57 | G172: 2.9 | H172: 3.47
A173: 東北電力43556 | B173: 電気 | C173: 東北電力 | E173: 43556 | F173: 0.42 | G173: 2.9 | H173: 3.32
A174: 東北電力43586 | B174: 電気 | C174: 東北電力 | E174: 43586 | F174: 0.22 | G174: 2.95 | H174: 3.17
A175: 東北電力43617 | B175: 電気 | C175: 東北電力 | E175: 43617 | F175: 0.06 | G175: 2.95 | H175: 3.01
A176: 東北電力43647 | B176: 電気 | C176: 東北電力 | E176: 43647 | F176: -0.02 | G176: 2.95 | H176: 2.93
A177: 東北電力43678 | B177: 電気 | C177: 東北電力 | E177: 43678 | F177: -0.14 | G177: 2.95 | H177: 2.81
A178: 東北電力43709 | B178: 電気 | C178: 東北電力 | E178: 43709 | F178: -0.32 | G178: 2.95 | H178: 2.63
A179: 東北電力43739 | B179: 電気 | C179: 東北電力 | E179: 43739 | F179: -0.49 | G179: 2.95 | H179: 2.46
A180: 東北電力43770 | B180: 電気 | C180: 東北電力 | E180: 43770 | F180: -0.56 | G180: 2.95 | H180: 2.39
A181: 東北電力43800 | B181: 電気 | C181: 東北電力 | E181: 43800 | F181: -0.68 | G181: 2.95 | H181: 2.27
A182: 東北電力43831 | B182: 電気 | C182: 東北電力 | E182: 43831 | F182: -0.74 | G182: 2.95 | H182: 2.21
A183: 東北電力43862 | B183: 電気 | C183: 東北電力 | E183: 43862 | F183: -0.84 | G183: 2.95 | H183: 2.11
A184: 東北電力43891 | B184: 電気 | C184: 東北電力 | E184: 43891 | F184: -0.84 | G184: 2.95 | H184: 2.11
A185: 東北電力43922 | B185: 電気 | C185: 東北電力 | E185: 43922 | F185: -0.84 | G185: 2.95 | H185: 2.11
A186: 東北電力43952 | B186: 電気 | C186: 東北電力 | E186: 43952 | F186: -0.84 | G186: 2.98 | H186: 2.14
A187: 東北電力43983 | B187: 電気 | C187: 東北電力 | E187: 43983 | F187: -0.91 | G187: 2.98 | H187: 2.07
A188: 東北電力44013 | B188: 電気 | C188: 東北電力 | E188: 44013 | F188: -1.09 | G188: 2.98 | H188: 1.89
A189: 東北電力44044 | B189: 電気 | C189: 東北電力 | E189: 44044 | F189: -1.36 | G189: 2.98 | H189: 1.62
A190: 東北電力44075 | B190: 電気 | C190: 東北電力 | E190: 44075 | F190: -1.77 | G190: 2.98 | H190: 1.21
A191: 東北電力44105 | B191: 電気 | C191: 東北電力 | E191: 44105 | F191: -2.18 | G191: 2.98 | H191: 0.8
A192: 東北電力44136 | B192: 電気 | C192: 東北電力 | E192: 44136 | F192: -2.47 | G192: 2.98 | H192: 0.51
A193: 東北電力44166 | B193: 電気 | C193: 東北電力 | E193: 44166 | F193: -2.7 | G193: 2.98 | H193: 0.28
A194: 東北電力44197 | B194: 電気 | C194: 東北電力 | E194: 44197 | F194: -2.84 | G194: 2.98 | H194: 0.14
A195: 東北電力44228 | B195: 電気 | C195: 東北電力 | E195: 44228 | F195: -2.82 | G195: 2.98 | H195: 0.16
A196: 東北電力44256 | B196: 電気 | C196: 東北電力 | E196: 44256 | F196: -2.66 | G196: 2.98 | H196: 0.32
A197: 東北電力44287 | B197: 電気 | C197: 東北電力 | E197: 44287 | F197: -2.31 | G197: 2.98 | H197: 0.67
A198: 東北電力44317 | B198: 電気 | C198: 東北電力 | E198: 44317 | F198: -1.9 | G198: 3.36 | H198: 1.46
A199: 東北電力44348 | B199: 電気 | C199: 東北電力 | E199: 44348 | F199: -1.63 | G199: 3.36 | H199: 1.73
A200: 東北電力44378 | B200: 電気 | C200: 東北電力 | E200: 44378 | F200: -1.42 | G200: 3.36 | H200: 1.94
... 1810 more rows

Sheet 月数計算 (hidden)
A4: 月 | B4: =MAX(IFERROR(MONTH(B5),0),B11) -> 1 | C4: =MAX(IFERROR(MONTH(C5),0),C11) -> 2 | D4: =MAX(IFERROR(MONTH(D5),0),D11) -> 3 | E4: 4 | F4: 5 | G4: 6 | H4: 7 | I4: 8 | J4: 9 | K4: 10 | L4: 11 | M4: 12 | N4: =MONTH(N6) -> 
A5: 月数ｶｳﾝﾄ | B5: 1 | C5: 2 | D5: 3 | E5: 4 | F5: 5 | G5: 6 | H5: 7 | I5: 8 | J5: 9 | K5: 10 | L5: 11 | M5: 12 | N5: 精算月 | O5: 燃料調整額
A6: 年月日 | B6: =電気代調整!D14 ->  | C6: =IF(C5<=$B$8,EDATE(B6,1),"") ->  | N6: =電気代調整!E14 ->  | O6: =VLOOKUP(B6,電力料金テーブル,4,TRUE) -> 
A7: 金額 | B7: =IFERROR(VLOOKUP(B6,電力料金テーブル,4,FALSE),"") ->  | O7: =AVERAGE(B7:N7) -> 
A8: 月数 | B8: =DATEDIF(B6,(N6+31),"M") ->  | O8: =B7+C7+D7+E7+F7+O7 -> 
O10: =O8/B8 -> 
A11: 月数ｶｳﾝﾄ | B11: 1 | C11: 2 | D11: 3 | E11: 4 | F11: 5 | G11: 6 | H11: 7 | I11: 8 | J11: 9 | K11: 10 | L11: 11 | M11: 12 | N11: 精算月 | O11: 燃料調整額
A12: 年月日 | B12: =電気代調整!D15 ->  | C12: =IF(C11<=$B$14,EDATE(B12,1),"") ->  | D12: =IF(D11<=$B$14,EDATE(C12,1),"") ->  | N12: =電気代調整!E15 ->  | O12: =VLOOKUP(B12,電力料金テーブル,4,TRUE) -> 
A13: 金額 | B13: =IFERROR(VLOOKUP(B12,電力料金テーブル,4,FALSE),"") ->  | O13: =AVERAGE(B13:N13) -> 
A14: 月数 | B14: =DATEDIF(B12,(N12+31),"M") -> 
A18: 入力チェック | B18: =IF(#REF!="入力OK",0,1) -> 
A19: 入力チェック | B19: =IF(#REF!="入力OK",0,1) -> 
A21: 基準期間 | B21: =COUNTIF(#REF!,"↓ 数値入力必要") -> 
A22: 精算期間 | B22: =COUNTIF(#REF!,"↓ 日付の範囲外") -> 
A24: 月入力 | B24: =COUNTIF(#REF!,"↓ 数値入力必要") -> 
A25: 数値入力 | B25: =COUNTIF(#REF!,"↓ 日付の範囲外") -> 
A27: 振分金額 | B27: =IF(#REF!=0,0,1) -> 
A29: エラー合計 | B29: =SUM(B18:B27) -> 

Sheet ⑤製品按分 (hidden)
C1: 半期重量 (kg) | D1: 重量 比率 | E1: ③変動総額 ｘ 重量比率 | F1: 半期個数 | G1: 個あたり 変動額(円) | H1: 現行 単価(円) | I1: 個あたり 転嫁額(円)
B2: i | C2: 1600 | D2: =C2/$C$6 -> 0.5333333333 | E2: =電気代調整!$G$24*⑤製品按分!D2 ->  | F2: 500000 | G2: =E2/F2 ->  | H2: 50 | I2: =SUM(G2:H2) -> 
B3: ii | C3: 500 | D3: =C3/$C$6 -> 0.1666666667 | E3: =電気代調整!$G$24*⑤製品按分!D3 ->  | F3: 600000 | G3: =E3/F3 ->  | H3: 70 | I3: =SUM(G3:H3) -> 
B4: iii | C4: 700 | D4: 0.2333333333 | E4: =電気代調整!$G$24*⑤製品按分!D4 ->  | F4: 200000 | H4: 40
B5: iv | C5: 200 | D5: 0.06666666667 | E5: =電気代調整!$G$24*⑤製品按分!D5 ->  | F5: 500000 | H5: 80
C6: =SUM(C2:C5) -> 3000 | D6: 1 | E6: =電気代調整!$G$24*⑤製品按分!D6 ->  | F6: =SUM(F2:F5) -> 1800000

Sheet 利用マニュアル
A195: \

Sheet 東京都最低賃金基準
B4: 労務費の増加額試算
C5: 黄色部のみ入力可
B7: １．過去と直近の単価の比較（毎年10月の最低賃金改定日を基準としています） | J7: 最低賃金
D8: 比較年度 | E8: 最低賃金額 | J8: 2014 | K8: 888
C9: 過去 | D9: 2020 | E9: =VLOOKUP(D9,賃金テーブル,2,FALSE) -> 1013 | J9: 2015 | K9: 907
C10: 直近 | D10: 2023 | E10: =VLOOKUP(D10,賃金テーブル,2,FALSE) -> 1113 | J10: 2016 | K10: 932
C11: ①差異 | E11: =E10-E9 -> 100 | J11: 2017 | K11: 958
C12: 単価は東京都最低賃金の公表値を使用 | J12: 2018 | K12: 985
J13: 2019 | K13: 1013
B14: ２．使用量 | C14: 上記１の直近の従業員数 | E14: ３．労務費の増加額 | J14: 2020 | K14: 1013
C15: ②従業員数 | E15: 増加額（円） | J15: 2021 | K15: 1041
C16: 20 | E16: =E11*136.3*12*C16 -> 3271200 | F16: ①×月間実労働時間136.3時間×12ケ月×② | J16: 2022 | K16: 1072
E17: 月間実労働時間は厚労省毎月勤労統計調査R5年分結果速報より | J17: 2023 | K17: 1113
B18: ３．取引先の労務費の負担割合とその基準
D19: 売上高(百万円) | E19: 基準比率 | G19: 労務費増加額（円） | J19: 売上高(百万円)
C20: 請求先企業 | D20: 64 | E20: =D20/$D$22 -> 0.5663716814 | F20: ＝＞ | G20: =$E$16*E20 -> 1852715.044 | J20: 製造数量(個)
C21: その他 | D21: 49 | E21: =D21/$D$22 -> 0.4336283186 | F21: ＝＞ | G21: =$E$16*E21 -> 1418484.956 | J21: 工場面積(㎡)
C22: 計 | D22: =SUM(D20:D21) -> 113 | E22: =SUM(E20:E21) -> 1 | F22: ＝＞ | G22: =E16 -> 3271200 | J22: 稼働時間（hrs）
J23: 作業時間（hrs）
J24: その他
B25: ４．東京都最低賃金の変動グラフ

Sheet 春季労使交渉基準
L2: 基準年
L3: 2018 | M3: 2019 | N3: 2020 | O3: 2021 | P3: 2022 | Q3: 2023
B4: 労務費の増加額試算 | K4: 2018
C5: 黄色部のみ入力可 | K5: 2019 | L5: 4815
K6: 2020 | L6: 4371 | M6: 4371
B7: １．期間内における賃金上昇額 | K7: 2021 | L7: 4376 | M7: 4376 | N7: 4376
D8: 過去 | E8: 現在 | F8: ①賃金増加合計額 | K8: 2022 | L8: 5036 | M8: 5036 | N8: 5036 | O8: 5036
C9: 基準年※1 | D9: 2020 | E9: 2023 | F9: =INDEX(L10:Q10,MATCH(D9,L3:Q3)) -> 17424 | K9: 2023 | L9: 8012 | M9: 8012 | N9: 8012 | O9: 8012 | P9: 8012
C10: 単価は春季労使交渉・中小企業業種別妥結結果の公表値を使用 | K10: 賃金増加額 | L10: =SUM(L5:L9) -> 26610 | M10: =SUM(M5:M9) -> 21795 | N10: 17424 | O10: 13048 | P10: 8012 | Q10: 0
C11: ※1 基準年の上げ幅は織り込み済み(基準年が2018年の場合4,804円は含まれず、2019年以降の上げ幅の合計となります）
C13: ◎春闘妥結額
C14: 2018 | D14: 2019 | E14: 2020 | F14: 2021 | G14: 2022 | H14: 2023
C15: 4804 | D15: 4815 | E15: 4371 | F15: 4376 | G15: 5036 | H15: 8012
B21: ２．使用量 | C21: 上記１の直近期間の従業員数 | E21: ３．労務費の増加額（①×12ケ月×②）
C22: ②従業員数 | E22: 増加額（円）
C23: 20 | E23: =F9*12*C23 -> 4181760
B25: ３．取引先の労務費の負担割合とその基準
D26: 売上高(百万円) | E26: 基準比率 | G26: 労務費増加額（円） | J26: 売上高(百万円)
C27: 請求先企業 | D27: 64 | E27: =D27/$D$29 -> 0.5663716814 | F27: ＝＞ | G27: =$E$23*E27 -> 2368430.442 | J27: 製造数量(個)
C28: その他 | D28: 49 | E28: =D28/$D$29 -> 0.4336283186 | F28: ＝＞ | G28: =$E$23*E28 -> 1813329.558 | J28: 工場面積(㎡)
C29: 計 | D29: =SUM(D27:D28) -> 113 | E29: =SUM(E27:E28) -> 1 | F29: ＝＞ | G29: =E23 -> 4181760 | J29: 稼働時間（hrs）
J30: 作業時間（hrs）
J31: その他 | K31: 賃金増加額 | L31: 21795 | M31: 17424 | N31: 13048 | O31: 8012
B32: ４．春季労使交渉・中小企業業種別妥結結果の変動グラフ

Sheet ガス料金(東京ガス) (hidden)
B1: ガス価格推移 | C1: グラフへ戻る | D1: 出典：原料調整費は財務省貿易統計・ガス会社HP、平均販売単価は新電力ネット
A2: 会社地域期間 | B2: 指標 | C2: 会社 | D2: 地域 | E2: 期間 | F2: 平均原料価格(円/ｔ)（税抜） | G2: 変動額(円/ｔ)（税抜） | H2: 原料調整費(円/m3)（税抜） | I2: 原料調整費(円/m3)（税抜）※石油石炭税含 | J2: 原料調整費(円/m3)（税込） | K2: 原料調整費(円/m3)（税込）※石油石炭税含 | L2: 平均販売単価・工業用(円/m3))(税抜）
A3: 北海道ガス40269 | B3: ガス | C3: 北海道ガス | E3: 2010-04-01 | F3: 47280 | G3: -19000 | H3: -15.96 | I3: -15.96 | J3: -16.75 | K3: -16.75
A4: 北海道ガス40299 | B4: ガス | C4: 北海道ガス | E4: 2010-05-01 | F4: 48780 | G4: -17500 | H4: -14.7 | I4: -14.7 | J4: -15.43 | K4: -15.43
A5: 北海道ガス40330 | B5: ガス | C5: 北海道ガス | E5: 2010-06-01 | F5: 50560 | G5: -15700 | H5: -13.188 | I5: -13.188 | J5: -13.84 | K5: -13.84
A6: 北海道ガス40360 | B6: ガス | C6: 北海道ガス | E6: 2010-07-01 | F6: 51580 | G6: -14700 | H6: -12.348 | I6: -12.348 | J6: -12.96 | K6: -12.96
A7: 北海道ガス40391 | B7: ガス | C7: 北海道ガス | E7: 2010-08-01 | F7: 54310 | G7: -12000 | H7: -10.08 | I7: -10.08 | J7: -10.58 | K7: -10.58
A8: 北海道ガス40422 | B8: ガス | C8: 北海道ガス | E8: 2010-09-01 | F8: 53120 | G8: -13100 | H8: -11.004 | I8: -11.004 | J8: -11.55 | K8: -11.55
A9: 北海道ガス40452 | B9: ガス | C9: 北海道ガス | E9: 2010-10-01 | F9: 52850 | G9: -13400 | H9: -11.256 | I9: -11.256 | J9: -11.81 | K9: -11.81
A10: 北海道ガス40483 | B10: ガス | C10: 北海道ガス | E10: 2010-11-01 | F10: 51390 | G10: -14900 | H10: -12.516 | I10: -12.516 | J10: -13.14 | K10: -13.14
A11: 北海道ガス40513 | B11: ガス | C11: 北海道ガス | E11: 2010-12-01 | F11: 50700 | G11: -15600 | H11: -13.104 | I11: -13.104 | J11: -13.75 | K11: -13.75
A12: 北海道ガス40544 | B12: ガス | C12: 北海道ガス | E12: 2011-01-01 | F12: 49380 | G12: -16900 | H12: -14.196 | I12: -14.196 | J12: -14.9 | K12: -14.9
A13: 北海道ガス40575 | B13: ガス | C13: 北海道ガス | E13: 2011-02-01 | F13: 48240 | G13: -18000 | H13: -15.12 | I13: -15.12 | J13: -15.87 | K13: -15.87
A14: 北海道ガス40603 | B14: ガス | C14: 北海道ガス | E14: 2011-03-01 | F14: 48260 | G14: -18000 | H14: -15.12 | I14: -15.12 | J14: -15.87 | K14: -15.87
A15: 北海道ガス40634 | B15: ガス | C15: 北海道ガス | E15: 2011-04-01 | F15: 49460 | G15: -16800 | H15: -14.112 | I15: -14.112 | J15: -14.81 | K15: -14.81
A16: 北海道ガス40664 | B16: ガス | C16: 北海道ガス | E16: 2011-05-01 | F16: 51390 | G16: -14900 | H16: -12.516 | I16: -12.516 | J16: -13.14 | K16: -13.14
A17: 北海道ガス40695 | B17: ガス | C17: 北海道ガス | E17: 2011-06-01 | F17: 53390 | G17: -12900 | H17: -10.836 | I17: -10.836 | J17: -11.37 | K17: -11.37
A18: 北海道ガス40725 | B18: ガス | C18: 北海道ガス | E18: 2011-07-01 | F18: 55320 | G18: -10900 | H18: -9.156 | I18: -9.156 | J18: -9.61 | K18: -9.61
A19: 北海道ガス40756 | B19: ガス | C19: 北海道ガス | E19: 2011-08-01 | F19: 57010 | G19: -9300 | H19: -7.812 | I19: -7.812 | J19: -8.2 | K19: -8.2
A20: 北海道ガス40787 | B20: ガス | C20: 北海道ガス | E20: 2011-09-01 | F20: 59480 | G20: -6800 | H20: -5.712 | I20: -5.712 | J20: -5.99 | K20: -5.99
A21: 北海道ガス40817 | B21: ガス | C21: 北海道ガス | E21: 2011-10-01 | F21: 62840 | G21: -3400 | H21: -2.856 | I21: -2.856 | J21: -2.99 | K21: -2.99
A22: 北海道ガス40848 | B22: ガス | C22: 北海道ガス | E22: 2011-11-01 | F22: 65520 | G22: -700 | H22: -0.588 | I22: -0.588 | J22: -0.61 | K22: -0.61
A23: 北海道ガス40878 | B23: ガス | C23: 北海道ガス | E23: 2011-12-01 | F23: 66580 | G23: 200 | H23: 0.168 | I23: 0.168 | J23: 0.17 | K23: 0.17
A24: 北海道ガス40909 | B24: ガス | C24: 北海道ガス | E24: 2012-01-01 | F24: 66100 | G24: -200 | H24: -0.168 | I24: -0.168 | J24: -0.17 | K24: -0.17
A25: 北海道ガス40940 | B25: ガス | C25: 北海道ガス | E25: 2012-02-01 | F25: 66430 | G25: 100 | H25: 0.084 | I25: 0.084 | J25: 0.08 | K25: 0.08
A26: 北海道ガス40969 | B26: ガス | C26: 北海道ガス | E26: 2012-03-01 | F26: 66820 | G26: 500 | H26: 0.42 | I26: 0.42 | J26: 0.44 | K26: 0.44
A27: 北海道ガス41000 | B27: ガス | C27: 北海道ガス | E27: 2012-04-01 | F27: 67190 | G27: 800 | H27: 0.672 | I27: 0.672 | J27: 0.7 | K27: 0.7
A28: 北海道ガス41030 | B28: ガス | C28: 北海道ガス | E28: 2012-05-01 | F28: 66830 | G28: 500 | H28: 0.42 | I28: 0.42 | J28: 0.44 | K28: 0.44
A29: 北海道ガス41061 | B29: ガス | C29: 北海道ガス | E29: 2012-06-01 | F29: 68590 | G29: 2200 | H29: 1.848 | I29: 1.848 | J29: 1.94 | K29: 1.94
A30: 北海道ガス41091 | B30: ガス | C30: 北海道ガス | E30: 2012-07-01 | F30: 70480 | G30: 4100 | H30: 3.444 | I30: 3.444 | J30: 3.61 | K30: 3.61
A31: 北海道ガス41122 | B31: ガス | C31: 北海道ガス | E31: 2012-08-01 | F31: 72240 | G31: 5900 | H31: 4.956 | I31: 4.956 | J31: 5.2 | K31: 5.2
A32: 北海道ガス41153 | B32: ガス | C32: 北海道ガス | E32: 2012-09-01 | F32: 72060 | G32: 5700 | H32: 4.788 | I32: 4.788 | J32: 5.02 | K32: 5.02
A33: 北海道ガス41183 | B33: ガス | C33: 北海道ガス | E33: 2012-10-01 | F33: 72220 | G33: 5900 | H33: 4.956 | I33: 4.956 | J33: 5.2 | K33: 5.2
A34: 北海道ガス41214 | B34: ガス | C34: 北海道ガス | E34: 2012-11-01 | F34: 72290 | G34: 5900 | H34: 4.956 | I34: 4.956 | J34: 5.2 | K34: 5.2
A35: 北海道ガス41244 | B35: ガス | C35: 北海道ガス | E35: 2012-12-01 | F35: 71640 | G35: 5300 | H35: 4.452 | I35: 4.452 | J35: 4.67 | K35: 4.67
A36: 北海道ガス41275 | B36: ガス | C36: 北海道ガス | E36: 2013-01-01 | F36: 68520 | G36: 2200 | H36: 1.848 | I36: 1.848 | J36: 1.94 | K36: 1.94
A37: 北海道ガス41306 | B37: ガス | C37: 北海道ガス | E37: 2013-02-01 | F37: 66030 | G37: -200 | H37: -0.168 | I37: 0.043 | J37: -0.17 | K37: 0.041
A38: 北海道ガス41334 | B38: ガス | C38: 北海道ガス | E38: 2013-03-01 | F38: 66080 | G38: -200 | H38: -0.168 | I38: 0.043 | J38: -0.17 | K38: 0.041
A39: 北海道ガス41365 | B39: ガス | C39: 北海道ガス | E39: 2013-04-01 | F39: 69900 | G39: 3500 | H39: 2.94 | I39: 3.151 | J39: 3.08 | K39: 3.291
A40: 北海道ガス41395 | B40: ガス | C40: 北海道ガス | E40: 2013-05-01 | F40: 74810 | G40: 8500 | H40: 7.14 | I40: 7.351 | J40: 7.49 | K40: 7.701
A41: 北海道ガス41426 | B41: ガス | C41: 北海道ガス | E41: 2013-06-01 | F41: 78920 | G41: 12600 | H41: 10.584 | I41: 10.795 | J41: 11.11 | K41: 11.321
A42: 北海道ガス41456 | B42: ガス | C42: 北海道ガス | E42: 2013-07-01 | F42: 81660 | G42: 15300 | H42: 12.852 | I42: 13.063 | J42: 13.49 | K42: 13.701
A43: 北海道ガス41487 | B43: ガス | C43: 北海道ガス | E43: 2013-08-01 | F43: 83170 | G43: 16800 | H43: 14.112 | I43: 14.323 | J43: 14.81 | K43: 15.021
A44: 北海道ガス41518 | B44: ガス | C44: 北海道ガス | E44: 2013-09-01 | F44: 84320 | G44: 18000 | H44: 15.12 | I44: 15.331 | J44: 15.87 | K44: 16.081
A45: 北海道ガス41548 | B45: ガス | C45: 北海道ガス | E45: 2013-10-01 | F45: 84640 | G45: 18300 | H45: 15.372 | I45: 15.583 | J45: 16.14 | K45: 16.351
A46: 北海道ガス41579 | B46: ガス | C46: 北海道ガス | E46: 2013-11-01 | F46: 82790 | G46: 16400 | H46: 13.776 | I46: 13.987 | J46: 14.46 | K46: 14.671
A47: 北海道ガス41609 | B47: ガス | C47: 北海道ガス | E47: 2013-12-01 | F47: 80870 | G47: 14500 | H47: 12.18 | I47: 12.391 | J47: 12.78 | K47: 12.991
A48: 北海道ガス41640 | B48: ガス | C48: 北海道ガス | E48: 2014-01-01 | F48: 78890 | G48: 12500 | H48: 10.5 | I48: 10.711 | J48: 11.02 | K48: 11.231
A49: 北海道ガス41671 | B49: ガス | C49: 北海道ガス | E49: 2014-02-01 | F49: 79250 | G49: 12900 | H49: 10.836 | I49: 11.047 | J49: 11.37 | K49: 11.581
A50: 北海道ガス41699 | B50: ガス | C50: 北海道ガス | E50: 2014-03-01 | F50: 82110 | G50: 15800 | H50: 13.272 | I50: 13.483 | J50: 13.93 | K50: 14.141
A51: 北海道ガス41730 | B51: ガス | C51: 北海道ガス | E51: 2014-04-01 | F51: 86680 | G51: 20300 | H51: 17.052 | I51: 17.263 | J51: 18.41 | K51: 18.621
A52: 北海道ガス41760 | B52: ガス | C52: 北海道ガス | E52: 2014-05-01 | F52: 89530 | G52: 23200 | H52: 19.488 | I52: 19.699 | J52: 21.04 | K52: 21.251
A53: 北海道ガス41791 | B53: ガス | C53: 北海道ガス | E53: 2014-06-01 | F53: 90360 | G53: 24000 | H53: 20.16 | I53: 20.371 | J53: 21.77 | K53: 21.981
A54: 北海道ガス41821 | B54: ガス | C54: 北海道ガス | E54: 2014-07-01 | F54: 89810 | G54: 23500 | H54: 19.74 | I54: 20.162 | J54: 21.31 | K54: 21.732
A55: 北海道ガス41852 | B55: ガス | C55: 北海道ガス | E55: 2014-08-01 | F55: 88810 | G55: 22500 | H55: 18.9 | I55: 19.322 | J55: 20.41 | K55: 20.832
A56: 北海道ガス41883 | B56: ガス | C56: 北海道ガス | E56: 2014-09-01 | F56: 87860 | G56: 21500 | H56: 18.06 | I56: 18.482 | J56: 19.5 | K56: 19.922
A57: 北海道ガス41913 | B57: ガス | C57: 北海道ガス | E57: 2014-10-01 | F57: 86420 | G57: 20100 | H57: 16.884 | I57: 17.306 | J57: 18.23 | K57: 18.652
A58: 北海道ガス41944 | B58: ガス | C58: 北海道ガス | E58: 2014-11-01 | F58: 85710 | G58: 19400 | H58: 16.296 | I58: 16.718 | J58: 17.59 | K58: 18.012
A59: 北海道ガス41974 | B59: ガス | C59: 北海道ガス | E59: 2014-12-01 | F59: 85360 | G59: 19000 | H59: 15.96 | I59: 16.382 | J59: 17.23 | K59: 17.652
A60: 北海道ガス42005 | B60: ガス | C60: 北海道ガス | E60: 2015-01-01 | F60: 86570 | G60: 20200 | H60: 16.968 | I60: 17.39 | J60: 18.32 | K60: 18.742
A61: 北海道ガス42036 | B61: ガス | C61: 北海道ガス | E61: 2015-02-01 | F61: 89610 | G61: 23300 | H61: 19.572 | I61: 19.994 | J61: 21.13 | K61: 21.552
A62: 北海道ガス42064 | B62: ガス | C62: 北海道ガス | E62: 2015-03-01 | F62: 93480 | G62: 27100 | H62: 22.764 | I62: 23.186 | J62: 24.58 | K62: 25.002
A63: 北海道ガス42095 | B63: ガス | C63: 北海道ガス | E63: 2015-04-01 | F63: 93700 | G63: 27300 | H63: 22.932 | I63: 23.354 | J63: 24.76 | K63: 25.182
A64: 北海道ガス42125 | B64: ガス | C64: 北海道ガス | E64: 2015-05-01 | F64: 89340 | G64: 23000 | H64: 19.32 | I64: 19.742 | J64: 20.86 | K64: 21.282
A65: 北海道ガス42156 | B65: ガス | C65: 北海道ガス | E65: 2015-06-01 | F65: 82340 | G65: 16000 | H65: 13.44 | I65: 13.862 | J65: 14.51 | K65: 14.932
A66: 北海道ガス42186 | B66: ガス | C66: 北海道ガス | E66: 2015-07-01 | F66: 73660 | G66: 7300 | H66: 6.132 | I66: 6.554 | J66: 6.62 | K66: 7.042
A67: 北海道ガス42217 | B67: ガス | C67: 北海道ガス | E67: 2015-08-01 | F67: 65960 | G67: -300 | H67: -0.252 | I67: 0.17 | J67: -0.27 | K67: 0.152
A68: 北海道ガス42248 | B68: ガス | C68: 北海道ガス | E68: 2015-09-01 | F68: 58450 | G68: -7800 | H68: -6.552 | I68: -6.13 | J68: -7.07 | K68: -6.648
A69: 北海道ガス42278 | B69: ガス | C69: 北海道ガス | E69: 2015-10-01 | F69: 56210 | G69: -10100 | H69: -8.484 | I69: -8.062 | J69: -9.16 | K69: -8.738
A70: 北海道ガス42309 | B70: ガス | C70: 北海道ガス | E70: 2015-11-01 | F70: 57360 | G70: -8900 | H70: -7.476 | I70: -7.054 | J70: -8.07 | K70: -7.648
A71: 北海道ガス42339 | B71: ガス | C71: 北海道ガス | E71: 2015-12-01 | F71: 58690 | G71: -7600 | H71: -6.384 | I71: -5.962 | J71: -6.89 | K71: -6.468
A72: 北海道ガス42370 | B72: ガス | C72: 北海道ガス | E72: 2016-01-01 | F72: 59170 | G72: -7100 | H72: -5.964 | I72: -5.542 | J72: -6.44 | K72: -6.018
A73: 北海道ガス42401 | B73: ガス | C73: 北海道ガス | E73: 2016-02-01 | F73: 58430 | G73: -7800 | H73: -6.552 | I73: -6.13 | J73: -7.07 | K73: -6.648
A74: 北海道ガス42430 | B74: ガス | C74: 北海道ガス | E74: 2016-03-01 | F74: 56250 | G74: -10000 | H74: -8.4 | I74: -7.978 | J74: -9.07 | K74: -8.648
A75: 北海道ガス42461 | B75: ガス | C75: 北海道ガス | E75: 2016-04-01 | F75: 53100 | G75: -13200 | H75: -11.088 | I75: -10.666 | J75: -11.97 | K75: -11.548
A76: 北海道ガス42491 | B76: ガス | C76: 北海道ガス | E76: 2016-05-01 | F76: 50220 | G76: -16000 | H76: -13.44 | I76: -13.018 | J76: -14.51 | K76: -14.088
A77: 北海道ガス42522 | B77: ガス | C77: 北海道ガス | E77: 2016-06-01 | F77: 45990 | G77: -20300 | H77: -17.052 | I77: -16.63 | J77: -18.41 | K77: -17.988
A78: 北海道ガス42552 | B78: ガス | C78: 北海道ガス | E78: 2016-07-01 | F78: 42440 | G78: -23800 | H78: -19.992 | I78: -19.358 | J78: -21.59 | K78: -20.956
A79: 北海道ガス42583 | B79: ガス | C79: 北海道ガス | E79: 2016-08-01 | F79: 38160 | G79: -28100 | H79: -23.604 | I79: -22.97 | J79: -25.49 | K79: -24.856
A80: 北海道ガス42614 | B80: ガス | C80: 北海道ガス | E80: 2016-09-01 | F80: 34640 | G80: -31600 | H80: -26.544 | I80: -25.91 | J80: -28.66 | K80: -28.026
A81: 北海道ガス42644 | B81: ガス | C81: 北海道ガス | E81: 2016-10-01 | F81: 33910 | G81: -32400 | H81: -27.216 | I81: -26.582 | J81: -29.39 | K81: -28.756
A82: 北海道ガス42675 | B82: ガス | C82: 北海道ガス | E82: 2016-11-01 | F82: 34460 | G82: -31800 | H82: -26.712 | I82: -26.078 | J82: -28.84 | K82: -28.206
A83: 北海道ガス42705 | B83: ガス | C83: 北海道ガス | E83: 2016-12-01 | F83: 35720 | G83: -30500 | H83: -25.62 | I83: -24.986 | J83: -27.66 | K83: -27.026
A84: 北海道ガス42736 | B84: ガス | C84: 北海道ガス | E84: 2017-01-01 | F84: 36980 | G84: -29300 | H84: -24.612 | I84: -23.978 | J84: -26.58 | K84: -25.946
A85: 北海道ガス42767 | B85: ガス | C85: 北海道ガス | E85: 2017-02-01 | F85: 38810 | G85: -27500 | H85: -23.1 | I85: -22.466 | J85: -24.94 | K85: -24.306
A86: 北海道ガス42795 | B86: ガス | C86: 北海道ガス | E86: 2017-03-01 | F86: 40790 | G86: -25500 | H86: -21.42 | I86: -20.786 | J86: -23.13 | K86: -22.496
A87: 北海道ガス42826 | B87: ガス | C87: 北海道ガス | E87: 2017-04-01 | F87: 43090 | G87: -23200 | H87: -19.488 | I87: -18.854 | J87: -21.04 | K87: -20.406
A88: 北海道ガス42856 | B88: ガス | C88: 北海道ガス | E88: 2017-05-01 | F88: 45310 | G88: -21000 | H88: -17.64 | I88: -17.006 | J88: -19.05 | K88: -18.416
A89: 北海道ガス42887 | B89: ガス | C89: 北海道ガス | E89: 2017-06-01 | F89: 46280 | G89: -20000 | H89: -16.8 | I89: -16.166 | J89: -18.14 | K89: -17.506
A90: 北海道ガス42917 | B90: ガス | C90: 北海道ガス | E90: 2017-07-01 | F90: 46870 | G90: -19400 | H90: -16.296 | I90: -15.662 | J90: -17.59 | K90: -16.956
A91: 北海道ガス42948 | B91: ガス | C91: 北海道ガス | E91: 2017-08-01 | F91: 47740 | G91: -18500 | H91: -15.54 | I91: -14.906 | J91: -16.78 | K91: -16.146
A92: 北海道ガス42979 | B92: ガス | C92: 北海道ガス | E92: 2017-09-01 | F92: 48490 | G92: -17800 | H92: -14.952 | I92: -14.318 | J92: -16.14 | K92: -15.506
A93: 北海道ガス43009 | B93: ガス | C93: 北海道ガス | E93: 2017-10-01 | F93: 48860 | G93: -17400 | H93: -14.616 | I93: -13.982 | J93: -15.78 | K93: -15.146
A94: 北海道ガス43040 | B94: ガス | C94: 北海道ガス | E94: 2017-11-01 | F94: 48140 | G94: -18100 | H94: -15.204 | I94: -14.57 | J94: -16.42 | K94: -15.786
A95: 北海道ガス43070 | B95: ガス | C95: 北海道ガス | E95: 2017-12-01 | F95: 47810 | G95: -18500 | H95: -15.54 | I95: -14.906 | J95: -16.78 | K95: -16.146
A96: 北海道ガス43101 | B96: ガス | C96: 北海道ガス | E96: 2018-01-01 | F96: 47190 | G96: -19100 | H96: -16.044 | I96: -15.41 | J96: -17.32 | K96: -16.686
A97: 北海道ガス43132 | B97: ガス | C97: 北海道ガス | E97: 2018-02-01 | F97: 47170 | G97: -19100 | H97: -16.044 | I97: -15.41 | J97: -17.32 | K97: -16.686
A98: 北海道ガス43160 | B98: ガス | C98: 北海道ガス | E98: 2018-03-01 | F98: 47840 | G98: -18400 | H98: -15.456 | I98: -14.822 | J98: -16.69 | K98: -16.056
A99: 北海道ガス43191 | B99: ガス | C99: 北海道ガス | E99: 2018-04-01 | F99: 49600 | G99: -16700 | H99: -14.028 | I99: -13.394 | J99: -15.15 | K99: -14.516
A100: 北海道ガス43221 | B100: ガス | C100: 北海道ガス | E100: 2018-05-01 | F100: 51140 | G100: -15100 | H100: -12.684 | I100: -12.05 | J100: -13.69 | K100: -13.056
A101: 北海道ガス43252 | B101: ガス | C101: 北海道ガス | E101: 2018-06-01 | F101: 52390 | G101: -13900 | H101: -11.676 | I101: -11.042 | J101: -12.61 | K101: -11.976
A102: 北海道ガス43282 | B102: ガス | C102: 北海道ガス | E102: 2018-07-01 | F102: 52800 | G102: -13500 | H102: -11.34 | I102: -10.706 | J102: -12.24 | K102: -11.606
A103: 北海道ガス43313 | B103: ガス | C103: 北海道ガス | E103: 2018-08-01 | F103: 53640 | G103: -12600 | H103: -10.584 | I103: -9.95 | J103: -11.43 | K103: -10.796
A104: 北海道ガス43344 | B104: ガス | C104: 北海道ガス | E104: 2018-09-01 | F104: 54950 | G104: -11300 | H104: -9.492 | I104: -8.858 | J104: -10.25 | K104: -9.616
A105: 北海道ガス43374 | B105: ガス | C105: 北海道ガス | E105: 2018-10-01 | F105: 56410 | G105: -9900 | H105: -8.316 | I105: -7.682 | J105: -8.98 | K105: -8.346
A106: 北海道ガス43405 | B106: ガス | C106: 北海道ガス | E106: 2018-11-01 | F106: 58050 | G106: -8200 | H106: -6.888 | I106: -6.254 | J106: -7.43 | K106: -6.796
A107: 北海道ガス43435 | B107: ガス | C107: 北海道ガス | E107: 2018-12-01 | F107: 59750 | G107: -6500 | H107: -5.46 | I107: -4.826 | J107: -5.89 | K107: -5.256
A108: 北海道ガス43466 | B108: ガス | C108: 北海道ガス | E108: 2019-01-01 | F108: 62120 | G108: -4100 | H108: -3.444 | I108: -2.81 | J108: -3.71 | K108: -3.076
A109: 北海道ガス43497 | B109: ガス | C109: 北海道ガス | E109: 2019-02-01 | F109: 64080 | G109: -2200 | H109: -1.848 | I109: -1.214 | J109: -1.99 | K109: -1.356
A110: 北海道ガス43525 | B110: ガス | C110: 北海道ガス | E110: 2019-03-01 | F110: 65120 | G110: -1100 | H110: -0.924 | I110: -0.29 | J110: -0.99 | K110: -0.356
A111: 北海道ガス43556 | B111: ガス | C111: 北海道ガス | E111: 2019-04-01 | F111: 64470 | G111: -1800 | H111: -1.512 | I111: -0.878 | J111: -1.63 | K111: -0.996
A112: 北海道ガス43586 | B112: ガス | C112: 北海道ガス | E112: 2019-05-01 | F112: 63670 | G112: -2600 | H112: -2.184 | I112: -1.55 | J112: -2.35 | K112: -1.716
A113: 北海道ガス43617 | B113: ガス | C113: 北海道ガス | E113: 2019-06-01 | F113: 62160 | G113: -4100 | H113: -3.444 | I113: -2.81 | J113: -3.71 | K113: -3.076
A114: 北海道ガス43647 | B114: ガス | C114: 北海道ガス | E114: 2019-07-01 | F114: 60120 | G114: -6100 | H114: -5.124 | I114: -4.49 | J114: -5.53 | K114: -4.896
A115: 北海道ガス43678 | B115: ガス | C115: 北海道ガス | E115: 2019-08-01 | F115: 57670 | G115: -8600 | H115: -7.224 | I115: -6.59 | J115: -7.8 | K115: -7.166
A116: 北海道ガス43709 | B116: ガス | C116: 北海道ガス | E116: 2019-09-01 | F116: 54830 | G116: -11400 | H116: -9.576 | I116: -8.942 | J116: -10.34 | K116: -9.706
A117: 北海道ガス43739 | B117: ガス | C117: 北海道ガス | E117: 2019-10-01 | F117: 53910 | G117: -12400 | H117: -10.416 | I117: -9.782 | J117: -11.45 | K117: -10.816
A118: 北海道ガス43770 | B118: ガス | C118: 北海道ガス | E118: 2019-11-01 | F118: 54050 | G118: -12200 | H118: -10.248 | I118: -9.614 | J118: -11.27 | K118: -10.636
A119: 北海道ガス43800 | B119: ガス | C119: 北海道ガス | E119: 2019-12-01 | F119: 53730 | G119: -12500 | H119: -10.5 | I119: -9.866 | J119: -11.55 | K119: -10.916
A120: 北海道ガス43831 | B120: ガス | C120: 北海道ガス | E120: 2020-01-01 | F120: 53340 | G120: -12900 | H120: -10.836 | I120: -10.202 | J120: -11.91 | K120: -11.276
A121: 北海道ガス43862 | B121: ガス | C121: 北海道ガス | E121: 2020-02-01 | F121: 52520 | G121: -13700 | H121: -11.508 | I121: -10.874 | J121: -12.65 | K121: -12.016
A122: 北海道ガス43891 | B122: ガス | C122: 北海道ガス | E122: 2020-03-01 | F122: 52900 | G122: -13400 | H122: -11.256 | I122: -10.622 | J122: -12.38 | K122: -11.746
A123: 北海道ガス43922 | B123: ガス | C123: 北海道ガス | E123: 2020-04-01 | F123: 53070 | G123: -13200 | H123: -11.088 | I123: -10.454 | J123: -12.19 | K123: -11.556
A124: 北海道ガス43952 | B124: ガス | C124: 北海道ガス | E124: 2020-05-01 | F124: 53110 | G124: -13200 | H124: -11.088 | I124: -10.454 | J124: -12.19 | K124: -11.556
A125: 北海道ガス43983 | B125: ガス | C125: 北海道ガス | E125: 2020-06-01 | F125: 52970 | G125: -13300 | H125: -11.172 | I125: -10.538 | J125: -12.28 | K125: -11.646
A126: 北海道ガス44013 | B126: ガス | C126: 北海道ガス | E126: 2020-07-01 | F126: 52530 | G126: -13700 | H126: -11.508 | I126: -10.874 | J126: -12.65 | K126: -12.016
A127: 北海道ガス44044 | B127: ガス | C127: 北海道ガス | E127: 2020-08-01 | F127: 51870 | G127: -14400 | H127: -12.096 | I127: -11.462 | J127: -13.3 | K127: -12.666
A128: 北海道ガス44075 | B128: ガス | C128: 北海道ガス | E128: 2020-09-01 | F128: 49100 | G128: -17200 | H128: -14.448 | I128: -13.814 | J128: -15.89 | K128: -15.256
A129: 北海道ガス44105 | B129: ガス | C129: 北海道ガス | E129: 2020-10-01 | F129: 45210 | G129: -21100 | H129: -17.724 | I129: -17.09 | J129: -19.49 | K129: -18.856
A130: 北海道ガス44136 | B130: ガス | C130: 北海道ガス | E130: 2020-11-01 | F130: 39560 | G130: -26700 | H130: -22.428 | I130: -21.794 | J130: -24.67 | K130: -24.036
A131: 北海道ガス44166 | B131: ガス | C131: 北海道ガス | E131: 2020-12-01 | F131: 34870 | G131: -31400 | H131: -26.376 | I131: -25.742 | J131: -29.01 | K131: -28.376
A132: 北海道ガス44197 | B132: ガス | C132: 北海道ガス | E132: 2021-01-01 | F132: 32230 | G132: -34000 | H132: -28.56 | I132: -27.926 | J132: -31.41 | K132: -30.776
A133: 北海道ガス44228 | B133: ガス | C133: 北海道ガス | E133: 2021-02-01 | F133: 33000 | G133: -33300 | H133: -27.972 | I133: -27.338 | J133: -30.76 | K133: -30.126
A134: 北海道ガス44256 | B134: ガス | C134: 北海道ガス | E134: 2021-03-01 | F134: 36120 | G134: -30100 | H134: -25.284 | I134: -24.65 | J134: -27.81 | K134: -27.176
A135: 北海道ガス44287 | B135: ガス | C135: 北海道ガス | E135: 2021-04-01 | F135: 40860 | G135: -25400 | H135: -21.336 | I135: -20.702 | J135: -23.46 | K135: -22.826
A136: 北海道ガス44317 | B136: ガス | C136: 北海道ガス | E136: 2021-05-01 | F136: 45820 | G136: -20400 | H136: -17.136 | I136: -16.502 | J136: -18.84 | K136: -18.206
A137: 北海道ガス44348 | B137: ガス | C137: 北海道ガス | E137: 2021-06-01 | F137: 47270 | G137: -19000 | H137: -15.96 | I137: -15.326 | J137: -17.55 | K137: -16.916
A138: 北海道ガス44378 | B138: ガス | C138: 北海道ガス | E138: 2021-07-01 | F138: 47320 | G138: -18900 | H138: -15.876 | I138: -15.242 | J138: -17.46 | K138: -16.826
A139: 北海道ガス44409 | B139: ガス | C139: 北海道ガス | E139: 2021-08-01 | F139: 45710 | G139: -20600 | H139: -17.304 | I139: -16.67 | J139: -19.03 | K139: -18.396
A140: 北海道ガス44440 | B140: ガス | C140: 北海道ガス | E140: 2021-09-01 | F140: 49190 | G140: -17100 | H140: -14.364 | I140: -13.73 | J140: -15.8 | K140: -15.166
A141: 北海道ガス44470 | B141: ガス | C141: 北海道ガス | E141: 2021-10-01 | F141: 52930 | G141: -13300 | H141: -11.172 | I141: -10.538 | J141: -12.28 | K141: -11.646
A142: 北海道ガス44501 | B142: ガス | C142: 北海道ガス | E142: 2021-11-01 | F142: 56170 | G142: -10100 | H142: -8.484 | I142: -7.85 | J142: -9.33 | K142: -8.696
A143: 北海道ガス44531 | B143: ガス | C143: 北海道ガス | E143: 2021-12-01 | F143: 59330 | G143: -6900 | H143: -5.796 | I143: -5.162 | J143: -6.37 | K143: -5.736
A144: 北海道ガス44562 | B144: ガス | C144: 北海道ガス | E144: 2022-01-01 | F144: 63350 | G144: -2900 | H144: -2.436 | I144: -1.802 | J144: -2.67 | K144: -2.036
A145: 北海道ガス44593 | B145: ガス | C145: 北海道ガス | E145: 2022-02-01 | F145: 73150 | G145: 6800 | H145: 5.712 | I145: 6.346 | J145: 6.28 | K145: 6.914
A146: 北海道ガス44621 | B146: ガス | C146: 北海道ガス | E146: 2022-03-01 | F146: 81450 | G146: 15100 | H146: 12.684 | I146: 13.318 | J146: 13.95 | K146: 14.584
A147: 北海道ガス44652 | B147: ガス | C147: 北海道ガス | E147: 2022-04-01 | F147: 84670 | G147: 18300 | H147: 15.372 | I147: 16.006 | J147: 16.9 | K147: 17.534
A148: 北海道ガス44682 | B148: ガス | C148: 北海道ガス | E148: 2022-05-01 | F148: 88000 | G148: 21600 | H148: 18.144 | I148: 18.778 | J148: 19.95 | K148: 20.584
A149: 北海道ガス44713 | B149: ガス | C149: 北海道ガス | E149: 2022-06-01 | F149: 89060 | G149: 22700 | H149: 19.068 | I149: 19.702 | J149: 20.97 | K149: 21.604
A150: 北海道ガス44743 | B150: ガス | C150: 北海道ガス | E150: 2022-07-01 | F150: 94850 | G150: 28500 | H150: 23.94 | I150: 24.574 | J150: 26.33 | K150: 26.964
A151: 北海道ガス44774 | B151: ガス | C151: 北海道ガス | E151: 2022-08-01 | F151: 98220 | G151: 31900 | H151: 26.796 | I151: 27.43 | J151: 29.47 | K151: 30.104
A152: 北海道ガス44805 | B152: ガス | C152: 北海道ガス | E152: 2022-09-01 | F152: 103240 | G152: 36900 | H152: 30.996 | I152: 31.63 | J152: 34.09 | K152: 34.724
A153: 北海道ガス44835 | B153: ガス | C153: 北海道ガス | E153: 2022-10-01 | F153: 112040 | G153: 45700 | H153: 38.388 | I153: 39.022 | J153: 42.22 | K153: 42.854
A154: 北海道ガス44866 | B154: ガス | C154: 北海道ガス | E154: 2022-11-01 | F154: 123090 | G154: 56700 | H154: 47.628 | I154: 48.262 | J154: 52.39 | K154: 53.024
A155: 北海道ガス44896 | B155: ガス | C155: 北海道ガス | E155: 2022-12-01 | F155: 141510 | G155: 75200 | H155: 63.168 | I155: 63.802 | J155: 69.48 | K155: 70.114
A156: 北海道ガス44927 | B156: ガス | C156: 北海道ガス | E156: 2023-01-01 | F156: 150700 | G156: 84300 | H156: 70.812 | I156: 71.446 | J156: 77.89 | K156: 78.524
A157: 北海道ガス44958 | B157: ガス | C157: 北海道ガス | E157: 2023-02-01 | F157: 149510 | G157: 83200 | H157: 69.888 | I157: 70.522 | J157: 76.87 | K157: 77.504
A158: 北海道ガス44986 | B158: ガス | C158: 北海道ガス | E158: 2023-03-01 | F158: 139630 | G158: 73300 | H158: 61.572 | I158: 62.206 | J158: 67.72 | K158: 68.354
A159: 北海道ガス45017 | B159: ガス | C159: 北海道ガス | E159: 2023-04-01 | F159: 130720 | G159: 64400 | H159: 54.096 | I159: 54.73 | J159: 59.5 | K159: 60.134
A160: 北海道ガス45047 | B160: ガス | C160: 北海道ガス | E160: 2023-05-01 | F160: 125670 | G160: 59300 | H160: 49.812 | I160: 50.446 | J160: 54.79 | K160: 55.424
A161: 北海道ガス45078 | B161: ガス | C161: 北海道ガス | E161: 2023-06-01 | F161: 116760 | G161: 50400 | H161: 42.336 | I161: 42.97 | J161: 46.56 | K161: 47.194
A162: 北海道ガス45108 | B162: ガス | C162: 北海道ガス | E162: 2023-07-01 | F162: 106450 | G162: 40100 | H162: 33.684 | I162: 34.318 | J162: 37.05 | K162: 37.684
A163: 北海道ガス45139 | B163: ガス | C163: 北海道ガス | E163: 2023-08-01 | F163: 96250 | G163: 29900 | H163: 25.116 | I163: 25.75 | J163: 27.62 | K163: 28.254
A164: 北海道ガス45170 | B164: ガス | C164: 北海道ガス | E164: 2023-09-01 | F164: 89830 | G164: 23500 | H164: 19.74 | I164: 20.374 | J164: 21.71 | K164: 22.344
A165: 京葉ガス40269 | B165: ガス | C165: 京葉ガス | E165: 2010-04-01 | F165: 38800 | G165: -20700 | H165: -16.767 | I165: -16.767 | J165: -17.6 | K165: -17.6
A166: 京葉ガス40299 | B166: ガス | C166: 京葉ガス | E166: 2010-05-01 | F166: 40070 | G166: -19400 | H166: -15.714 | I166: -15.714 | J166: -16.49 | K166: -16.49
A167: 京葉ガス40330 | B167: ガス | C167: 京葉ガス | E167: 2010-06-01 | F167: 41530 | G167: -18000 | H167: -14.58 | I167: -14.58 | J167: -15.3 | K167: -15.3
A168: 京葉ガス40360 | B168: ガス | C168: 京葉ガス | E168: 2010-07-01 | F168: 42360 | G168: -17100 | H168: -13.851 | I168: -13.851 | J168: -14.54 | K168: -14.54
A169: 京葉ガス40391 | B169: ガス | C169: 京葉ガス | E169: 2010-08-01 | F169: 43740 | G169: -15800 | H169: -12.798 | I169: -12.798 | J169: -13.43 | K169: -13.43
A170: 京葉ガス40422 | B170: ガス | C170: 京葉ガス | E170: 2010-09-01 | F170: 43580 | G170: -15900 | H170: -12.879 | I170: -12.879 | J170: -13.52 | K170: -13.52
A171: 京葉ガス40452 | B171: ガス | C171: 京葉ガス | E171: 2010-10-01 | F171: 43250 | G171: -16200 | H171: -13.122 | I171: -13.122 | J171: -13.77 | K171: -13.77
A172: 京葉ガス40483 | B172: ガス | C172: 京葉ガス | E172: 2010-11-01 | F172: 41960 | G172: -17500 | H172: -14.175 | I172: -14.175 | J172: -14.88 | K172: -14.88
A173: 京葉ガス40513 | B173: ガス | C173: 京葉ガス | E173: 2010-12-01 | F173: 41250 | G173: -18200 | H173: -14.742 | I173: -14.742 | J173: -15.47 | K173: -15.47
A174: 京葉ガス40544 | B174: ガス | C174: 京葉ガス | E174: 2011-01-01 | F174: 40230 | G174: -19300 | H174: -15.633 | I174: -15.633 | J174: -16.41 | K174: -16.41
A175: 京葉ガス40575 | B175: ガス | C175: 京葉ガス | E175: 2011-02-01 | F175: 39480 | G175: -20000 | H175: -16.2 | I175: -16.2 | J175: -17.01 | K175: -17.01
A176: 京葉ガス40603 | B176: ガス | C176: 京葉ガス | E176: 2011-03-01 | F176: 39720 | G176: -19800 | H176: -16.038 | I176: -16.038 | J176: -16.83 | K176: -16.83
A177: 京葉ガス40634 | B177: ガス | C177: 京葉ガス | E177: 2011-04-01 | F177: 40890 | G177: -18600 | H177: -15.066 | I177: -15.066 | J177: -15.81 | K177: -15.81
A178: 京葉ガス40664 | B178: ガス | C178: 京葉ガス | E178: 2011-05-01 | F178: 42500 | G178: -17000 | H178: -13.77 | I178: -13.77 | J178: -14.45 | K178: -14.45
A179: 京葉ガス40695 | B179: ガス | C179: 京葉ガス | E179: 2011-06-01 | F179: 44010 | G179: -15500 | H179: -12.555 | I179: -12.555 | J179: -13.18 | K179: -13.18
A180: 京葉ガス40725 | B180: ガス | C180: 京葉ガス | E180: 2011-07-01 | F180: 45470 | G180: -14000 | H180: -11.34 | I180: -11.34 | J180: -11.9 | K180: -11.9
A181: 京葉ガス40756 | B181: ガス | C181: 京葉ガス | E181: 2011-08-01 | F181: 46860 | G181: -12600 | H181: -10.206 | I181: -10.206 | J181: -10.71 | K181: -10.71
A182: 京葉ガス40787 | B182: ガス | C182: 京葉ガス | E182: 2011-09-01 | F182: 48850 | G182: -10600 | H182: -8.586 | I182: -8.586 | J182: -9.01 | K182: -9.01
A183: 京葉ガス40817 | B183: ガス | C183: 京葉ガス | E183: 2011-10-01 | F183: 51410 | G183: -8100 | H183: -6.561 | I183: -6.561 | J183: -6.88 | K183: -6.88
A184: 京葉ガス40848 | B184: ガス | C184: 京葉ガス | E184: 2011-11-01 | F184: 53330 | G184: -6200 | H184: -5.022 | I184: -5.022 | J184: -5.27 | K184: -5.27
A185: 京葉ガス40878 | B185: ガス | C185: 京葉ガス | E185: 2011-12-01 | F185: 54000 | G185: -5500 | H185: -4.455 | I185: -4.455 | J185: -4.67 | K185: -4.67
A186: 京葉ガス40909 | B186: ガス | C186: 京葉ガス | E186: 2012-01-01 | F186: 53550 | G186: -5900 | H186: -4.779 | I186: -4.779 | J186: -5.01 | K186: -5.01
A187: 京葉ガス40940 | B187: ガス | C187: 京葉ガス | E187: 2012-02-01 | F187: 53740 | G187: -5800 | H187: -4.698 | I187: -4.698 | J187: -4.93 | K187: -4.93
A188: 京葉ガス40969 | B188: ガス | C188: 京葉ガス | E188: 2012-03-01 | F188: 54010 | G188: -5500 | H188: -4.455 | I188: -4.455 | J188: -4.67 | K188: -4.67
A189: 京葉ガス41000 | B189: ガス | C189: 京葉ガス | E189: 2012-04-01 | F189: 54310 | G189: -5200 | H189: -4.212 | I189: -4.212 | J189: -4.42 | K189: -4.42
A190: 京葉ガス41030 | B190: ガス | C190: 京葉ガス | E190: 2012-05-01 | F190: 54180 | G190: -5300 | H190: -4.293 | I190: -4.293 | J190: -4.5 | K190: -4.5
A191: 京葉ガス41061 | B191: ガス | C191: 京葉ガス | E191: 2012-06-01 | F191: 55930 | G191: -3600 | H191: -2.916 | I191: -2.916 | J191: -3.06 | K191: -3.06
A192: 京葉ガス41091 | B192: ガス | C192: 京葉ガス | E192: 2012-07-01 | F192: 57690 | G192: -1800 | H192: -1.458 | I192: -1.458 | J192: -1.53 | K192: -1.53
A193: 京葉ガス41122 | B193: ガス | C193: 京葉ガス | E193: 2012-08-01 | F193: 59110 | G193: -400 | H193: -0.324 | I193: -0.324 | J193: -0.34 | K193: -0.34
A194: 京葉ガス41153 | B194: ガス | C194: 京葉ガス | E194: 2012-09-01 | F194: 58660 | G194: -800 | H194: -0.648 | I194: -0.648 | J194: -0.68 | K194: -0.68
A195: 京葉ガス41183 | B195: ガス | C195: 京葉ガス | E195: 2012-10-01 | F195: 58290 | G195: -1200 | H195: -0.972 | I195: -0.972 | J195: -1.02 | K195: -1.02
A196: 京葉ガス41214 | B196: ガス | C196: 京葉ガス | E196: 2012-11-01 | F196: 58030 | G196: -1500 | H196: -1.215 | I196: -1.215 | J196: -1.27 | K196: -1.27
A197: 京葉ガス41244 | B197: ガス | C197: 京葉ガス | E197: 2012-12-01 | F197: 57640 | G197: -1900 | H197: -1.539 | I197: -1.539 | J197: -1.61 | K197: -1.61
A198: 京葉ガス41275 | B198: ガス | C198: 京葉ガス | E198: 2013-01-01 | F198: 55470 | G198: -4000 | H198: -3.24 | I198: -3.24 | J198: -3.4 | K198: -3.4
A199: 京葉ガス41306 | B199: ガス | C199: 京葉ガス | E199: 2013-02-01 | F199: 53930 | G199: -5600 | H199: -4.536 | I199: -4.325 | J199: -4.76 | K199: -4.549
A200: 京葉ガス41334 | B200: ガス | C200: 京葉ガス | E200: 2013-03-01 | F200: 54220 | G200: -5300 | H200: -4.293 | I200: -4.082 | J200: -4.5 | K200: -4.289
... 3127 more rows

Sheet 月数計算(GAS) (hidden)
A4: 月 | B4: =MAX(IFERROR(MONTH(B5),0),B11) -> 1 | C4: =MAX(IFERROR(MONTH(C5),0),C11) -> 2 | D4: =MAX(IFERROR(MONTH(D5),0),D11) -> 3 | E4: 4 | F4: 5 | G4: 6 | H4: 7 | I4: 8 | J4: 9 | K4: 10 | L4: 11 | M4: 12
A5: 月数ｶｳﾝﾄ | B5: 1 | C5: 2 | D5: 3 | E5: 4 | F5: 5 | G5: 6 | H5: 7 | I5: 8 | J5: 9 | K5: 10 | L5: 11 | M5: 12 | N5: 精算月 | O5: 燃料調整額
A6: 年月日 | B6: =#REF! ->  | C6: =IF(C5<=$B$8,EDATE(B6,1),"") ->  | N6: =#REF! -> 
A7: 金額 | B7: =IFERROR(VLOOKUP(B6,ガス料金テーブル,5,FALSE),"") ->  | O7: =AVERAGE(B7:N7) -> 
A8: 月数 | B8: =DATEDIF(B6,(N6+31),"M") ->  | O8: =B7+C7+D7+E7+F7+O7 -> 
O9: =O8/B8 -> 
F10: =IFERROR(MONTH(F12),"") ->  | O10: =O8/B8 -> 
A11: 月数ｶｳﾝﾄ | B11: 1 | C11: 2 | D11: 3 | E11: 4 | F11: 5 | G11: 6 | H11: 7 | I11: 8 | J11: 9 | K11: 10 | L11: 11 | M11: 12 | N11: 精算月 | O11: 燃料調整額
A12: 年月日 | B12: =#REF! ->  | C12: =IF(C11<=$B$14,EDATE(B12,1),"") ->  | D12: =IF(D11<=$B$14,EDATE(C12,1),"") ->  | N12: =#REF! -> 
A13: 金額 | B13: =IFERROR(VLOOKUP(B12,ガス料金テーブル,5,FALSE),"") ->  | O13: =AVERAGE(B13:N13) -> 
A14: 月数 | B14: =DATEDIF(B12,(N12+31),"M") -> 
C15: => | D15: DATEDIF(B5,(N5+1),"M") | F15: 9/1付のように各日付の１日がはいっているので、
F16: ＋31日とすることで、すべて＋１か月となった。

Sheet ⑤製品按分 (ガス) (hidden)
C1: 半期売上 (円) | D1: 重量 比率 | E1: ③変動総額 ｘ 重量比率 | F1: 半期個数 | G1: 個あたり 変動額(円) | H1: 現行 単価(円) | I1: 個あたり 転嫁額(円)
B2: i | C2: 30000 | D2: =C2/$C$6 -> 0.6 | E2: =#REF!*'⑤製品按分 (ガス)'!D2 ->  | F2: 500000 | G2: =E2/F2 ->  | H2: 50 | I2: =SUM(G2:H2) -> 
B3: ii | C3: 10000 | D3: =C3/$C$6 -> 0.2 | E3: =#REF!*'⑤製品按分 (ガス)'!D3 ->  | F3: 600000 | G3: =E3/F3 ->  | H3: 70 | I3: =SUM(G3:H3) -> 
B4: iii | C4: 5000 | D4: 0.1 | E4: =#REF!*'⑤製品按分 (ガス)'!D4 ->  | F4: 200000 | H4: 40
B5: iv | C5: 5000 | D5: 0.1 | E5: =#REF!*'⑤製品按分 (ガス)'!D5 ->  | F5: 500000 | H5: 80
C6: =SUM(C2:C5) -> 50000 | D6: 1 | E6: =#REF!*'⑤製品按分 (ガス)'!D6 ->  | F6: =SUM(F2:F5) -> 1800000
